fUSD/lending_fUSD_20260405
["ID","MTS","AMOUNT","RATE_DAILY","PERIOD"]
[419855342,1775422243534,-150.0,0.00013699,2]
[419855343,1775422243544,-150.0,0.00013699,2]
[419855344,1775422243554,-150.0,0.00013699,2]
[419855345,1775422243563,-150.0,0.00013699,2]
[419855346,1775422243573,-150.0,0.00013699,2]
[419855347,1775422243583,-150.0,0.00013699,2]
[419855348,1775422243592,-150.0,0.00013699,2]
[419855349,1775422243602,-717.06,0.00013699,2]
[419855350,1775422243612,-476.08,0.00013699,2]
[419855351,1775422243621,-396.73,0.00013699,2]
[419855352,1775422243631,-330.61,0.00013699,2]
[419855353,1775422243641,-275.51,0.00013699,2]
[419855354,1775422243651,-229.59,0.00013699,2]
[419855355,1775422243660,-191.33,0.00013699,2]
[419855356,1775422243670,-159.44,0.00013699,2]
[419855357,1775422243680,-797.21,0.00013699,2]
[419855358,1775422243689,-157.45,0.00013699,2]
[419855359,1775422243699,-500.0,0.00013699,2]
[419855360,1775422243709,-633.93373005,0.00013699,2]
[419855361,1775422243719,-500.0,0.00013716,2]
[419855362,1775422243729,-255.0,0.00013758,2]
[419855363,1775422243739,-26342.9185009,0.00013812,2]
[419855364,1775422243749,-27548.95393674,0.00013812,2]
[419855365,1775422243758,-178.831115,0.00013845,2]
[419855366,1775422243768,-2000.0,0.00013858,2]
[419855367,1775422243778,-272.65,0.00013859,2]
[419855368,1775422243787,-200.0,0.00013935,2]
[419855369,1775422243797,-500.0,0.00013953,2]
[419855370,1775422243807,-500.0,0.00013953,2]
[419855371,1775422243817,-584.36,0.00013972,2]
[419855372,1775422243827,-150.0,0.00013973,2]
[419855373,1775422243836,-150.0,0.00013973,2]
[419855374,1775422243845,-150.0,0.00013973,2]
[419855376,1775422243855,-150.0,0.00013973,2]
[419855377,1775422243864,-150.0,0.00013973,2]
[419855378,1775422243874,-150.0,0.00013973,2]
[419855379,1775422243885,-150.0,0.00013973,2]
[419855380,1775422243895,-5246.17182426,0.00013982,2]
[419855381,1775422243904,-500.0,0.00014005,2]
[419855382,1775422243914,-60000.0,0.00014006,2]
[419855383,1775422243923,-411.86,0.00014041,2]
[419855384,1775422243933,-401.86263214,0.00014042,2]
[419855385,1775422243943,-500.0,0.00014085,2]
[419855386,1775422243953,-155.19654635,0.00014086,2]
[419855387,1775422243962,-618.56,0.00014106,2]
[419855388,1775422243972,-500.0,0.00014106,2]
[419855389,1775422243982,-500.0,0.00014106,2]
[419855390,1775422243991,-634.93,0.00014106,2]
[419855391,1775422244000,-500.0,0.00014106,2]
[419855392,1775422244010,-571.58,0.00014106,2]
[419855393,1775422244019,-500.0,0.00014106,2]
[419855394,1775422244029,-500.0,0.00014106,2]
[419855395,1775422244038,-500.0,0.00014106,2]
[419855396,1775422244048,-500.0,0.00014106,2]
[419855397,1775422244057,-500.0,0.00014106,2]
[419855398,1775422244066,-500.0,0.00014106,2]
[419855399,1775422244076,-500.0,0.00014106,2]
[419855400,1775422244085,-500.0,0.00014106,2]
[419855401,1775422244094,-615.25,0.00014106,2]
[419855402,1775422244104,-507.0,0.00014109,2]
[419855403,1775422244113,-26342.9185009,0.0001411,2]
[419855405,1775422244123,-27548.95393674,0.0001411,2]
[419855407,1775422244132,-1062.40962909,0.0001411,2]
[419855409,1775422244141,-160.0,0.0001412,2]
[419855410,1775422244151,-2713.002751,0.0001412,2]
[419855411,1775422244160,-5266.005502,0.0001412,2]
[419855412,1775422244169,-1852.42,0.00014175,2]
[419855413,1775422244180,-1450.0,0.00014183,2]
[419855414,1775422244189,-1450.0,0.00014183,2]
[419855415,1775422244198,-1450.0,0.00014183,2]
[419855416,1775422244207,-1450.0,0.00014183,2]
[419855417,1775422244217,-1450.0,0.00014183,2]
[419855418,1775422244226,-1450.0,0.00014183,2]
[419855419,1775422244235,-1450.0,0.00014183,2]
[419855420,1775422244245,-1450.0,0.00014183,2]
[419855421,1775422244255,-1450.0,0.00014183,2]
[419855422,1775422244265,-1049.0,0.00014183,2]
[419855423,1775422244275,-160.0,0.00014186,7]
[419855424,1775422244284,-1737.005469,0.00014186,7]
[419855425,1775422244294,-3314.010938,0.00014186,7]
[419855426,1775422244304,-341.48,0.00014204,2]
[419855427,1775422244313,-160.0,0.00014214,7]
[419855428,1775422244324,-6884.989052,0.00014214,7]
[419855429,1775422244333,-13609.978104,0.00014214,7]
[419855430,1775422244343,-500.0,0.00014219,2]
[419855431,1775422244352,-160.0,0.0001422,2]
[419855432,1775422244362,-2754.184828,0.0001422,2]
[419855433,1775422244372,-5348.369657,0.0001422,2]
[419855434,1775422244381,-2000.0,0.00014241,2]
[419855435,1775422244391,-2000.0,0.00014241,2]
[419855436,1775422244400,-2000.0,0.00014241,2]
[419855437,1775422244410,-2000.0,0.00014241,2]
[419855438,1775422244419,-2000.0,0.00014241,2]
[419855439,1775422244429,-2000.0,0.00014241,2]
[419855440,1775422244438,-2000.0,0.00014241,2]
[419855441,1775422244448,-2000.0,0.00014241,2]
[419855442,1775422244457,-2000.0,0.00014241,2]
[419855443,1775422244467,-2000.0,0.00014241,2]
[419855444,1775422244476,-2000.0,0.00014241,2]
[419855445,1775422244486,-2000.0,0.00014241,2]
[419855446,1775422244496,-2000.0,0.00014241,2]
[419855447,1775422244506,-2000.0,0.00014241,2]
[419855448,1775422244515,-2000.0,0.00014241,2]
[419855449,1775422244525,-2000.0,0.00014241,2]
[419855450,1775422244535,-2000.0,0.00014241,2]
[419855451,1775422244546,-2000.0,0.00014241,2]
[419855452,1775422244556,-2000.0,0.00014241,2]
[419855453,1775422244565,-2000.0,0.00014241,2]
[419855454,1775422244575,-584.36,0.00014246,2]
[419855455,1775422244585,-150.0,0.00014247,2]
[419855456,1775422244595,-150.0,0.00014247,2]
[419855457,1775422244605,-150.0,0.00014247,2]
[419855458,1775422244614,-150.0,0.00014247,2]
[419855459,1775422244623,-150.0,0.00014247,2]
[419855460,1775422244632,-150.0,0.00014247,2]
[419855461,1775422244642,-229.47331444,0.00014316,2]
[419855462,1775422244651,-1600.0,0.0001434,2]
[419855463,1775422244661,-5246.17182426,0.00014366,2]
[419855464,1775422244670,-150.0,0.000144,2]
[419855465,1775422244680,-150.0,0.000144,2]
[419855466,1775422244689,-150.0,0.000144,2]
[419855467,1775422244698,-150.0,0.000144,2]
[419855468,1775422244709,-150.0,0.000144,2]
[419855469,1775422244719,-150.0,0.000144,2]
[419855470,1775422244730,-150.0,0.000144,2]
[419855471,1775422244739,-150.0,0.000144,2]
[419855472,1775422244749,-150.0,0.000144,2]
[419855473,1775422244758,-150.0,0.000144,2]
[419855474,1775422244768,-150.0,0.000144,2]
[419855475,1775422244777,-150.0,0.000144,2]
[419855476,1775422244787,-150.0,0.000144,2]
[419855477,1775422244796,-150.0,0.000144,2]
[419855478,1775422244805,-26342.9185009,0.00014408,2]
[419855479,1775422244815,-27548.95393674,0.00014408,2]
[419855480,1775422244824,-150.0,0.00014419,2]
[419855481,1775422244834,-150.0,0.00014423,2]
[419855482,1775422244843,-150.0,0.00014424,2]
[419855483,1775422244854,-150.0,0.0001443,2]
[419855484,1775422244864,-150.0,0.00014431,2]
[419855485,1775422244874,-150.0,0.00014432,2]
[419855486,1775422244883,-150.0,0.00014438,2]
[419855487,1775422244894,-150.0,0.00014445,2]
[419855488,1775422244904,-150.0,0.00014448,2]
[419855489,1775422244914,-150.0,0.00014455,2]
[419855490,1775422244924,-150.0,0.00014456,2]
[419855491,1775422244934,-150.0,0.0001446,2]
[419855492,1775422244945,-150.0,0.00014462,2]
[419855493,1775422244956,-150.0,0.00014464,2]
[419855494,1775422244965,-150.0,0.00014468,2]
[419855495,1775422244974,-150.0,0.00014472,2]
[419855496,1775422244983,-150.0,0.00014473,2]
[419855497,1775422244992,-150.0,0.00014475,2]
[419855498,1775422245002,-150.0,0.0001449,2]
[419855499,1775422245012,-150.0,0.00014491,2]
[419855500,1775422245023,-150.0,0.00014492,2]
[419855501,1775422245034,-150.0,0.00014494,2]
[419855502,1775422245044,-150.0,0.00014496,2]
[419855503,1775422245053,-150.0,0.00014496,2]
[419855504,1775422245063,-150.0,0.000145,2]
[419855505,1775422245073,-634.93,0.00014504,2]
[419855506,1775422245083,-571.58,0.00014504,2]
[419855507,1775422245094,-500.0,0.00014504,2]
[419855508,1775422245105,-500.0,0.00014504,2]
[419855509,1775422245115,-500.0,0.00014504,2]
[419855510,1775422245124,-500.0,0.00014504,2]
[419855511,1775422245135,-500.0,0.00014504,2]
[419855512,1775422245145,-615.25,0.00014504,2]
[419855513,1775422245154,-9999.99,0.00014504,2]
[419855514,1775422245163,-299.99,0.00014504,2]
[419855515,1775422245173,-9999.99,0.00014504,2]
[419855516,1775422245182,-150.99,0.00014504,2]
[419855517,1775422245192,-150.0,0.0001451,2]
[419855518,1775422245202,-150.0,0.00014513,2]
[419855519,1775422245212,-150.0,0.00014513,2]
[419855520,1775422245221,-150.0,0.00014519,2]
[419855521,1775422245230,-584.36,0.0001452,2]
[419855522,1775422245239,-150.0,0.00014521,2]
[419855523,1775422245248,-160.0,0.00014522,2]
[419855524,1775422245257,-150.0,0.00014523,2]
[419855525,1775422245267,-150.0,0.00014528,2]
[419855526,1775422245276,-150.0,0.00014532,2]
[419855527,1775422245285,-150.0,0.00014534,4]
[419855528,1775422245294,-150.0,0.00014535,2]
[419855529,1775422245303,-150.0,0.00014543,2]
[419855530,1775422245312,-150.0,0.00014545,2]
[419855531,1775422245321,-150.0,0.00014551,2]
[419855532,1775422245330,-150.0,0.00014551,2]
[419855533,1775422245339,-150.0,0.00014554,2]
[419855534,1775422245348,-1062.40962909,0.00014558,2]
[419855535,1775422245358,-150.0,0.00014558,2]
[419855536,1775422245367,-150.0,0.0001456,2]
[419855537,1775422245376,-150.0,0.00014566,2]
[419855538,1775422245385,-150.0,0.00014567,2]
[419855539,1775422245394,-150.0,0.00014569,2]
[419855540,1775422245403,-150.0,0.0001458,2]
[419855541,1775422245412,-150.0,0.00014581,2]
[419855542,1775422245421,-150.0,0.00014585,2]
[419855543,1775422245431,-150.0,0.00014588,2]
[419855544,1775422245440,-150.0,0.00014591,2]
[419855545,1775422245450,-150.0,0.00014592,2]
[419855546,1775422245459,-150.0,0.000146,2]
[419855547,1775422245468,-150.0,0.00014603,2]
[419855548,1775422245477,-150.0,0.00014607,2]
[419855549,1775422245487,-150.0,0.00014611,2]
[419855550,1775422245496,-150.0,0.00014615,2]
[419855551,1775422245505,-150.0,0.00014615,2]
[419855552,1775422245515,-150.0,0.00014618,2]
[419855553,1775422245524,-5061.29326262,0.00014619,2]
[419855554,1775422245533,-150.0,0.00014621,2]
[419855555,1775422245541,-150.0,0.00014624,2]
[419855556,1775422245551,-150.0,0.00014625,2]
[419855557,1775422245560,-150.0,0.00014626,2]
[419855558,1775422245569,-150.0,0.00014639,2]
[419855559,1775422245579,-150.0,0.00014642,2]
[419855560,1775422245588,-150.0,0.00014645,2]
[419855561,1775422245597,-150.0,0.00014646,2]
[419855562,1775422245605,-150.0,0.00014648,2]
[419855563,1775422245615,-272.65,0.00014654,2]
[419855564,1775422245624,-150.0,0.00014656,2]
[419855565,1775422245633,-150.0,0.00014663,2]
[419855566,1775422245642,-150.0,0.00014664,2]
[419855567,1775422245651,-150.0,0.00014667,2]
[419855568,1775422245660,-150.0,0.0001467,2]
[419855569,1775422245670,-150.0,0.00014672,2]
[419855570,1775422245680,-150.0,0.00014676,2]
[419855571,1775422245690,-150.0,0.00014677,2]
[419855572,1775422245700,-150.0,0.00014682,2]
[419855573,1775422245710,-150.0,0.00014687,2]
[419855574,1775422245720,-150.0,0.00014688,2]
[419855575,1775422245730,-150.0,0.00014691,2]
[419855576,1775422245739,-150.0,0.00014693,2]
[419855577,1775422245748,-168.9041,0.000147,2]
[419855578,1775422245758,-150.0,0.000147,2]
[419855579,1775422245767,-150.0,0.00014701,2]
[419855580,1775422245776,-150.0,0.00014702,2]
[419855581,1775422245786,-26342.9185009,0.00014707,2]
[419855582,1775422245795,-27548.95393674,0.00014707,2]
[419855583,1775422245804,-150.0,0.00014708,2]
[419855584,1775422245813,-150.0,0.0001471,2]
[419855585,1775422245822,-150.0,0.00014715,2]
[419855586,1775422245831,-150.0,0.0001472,2]
[419855587,1775422245841,-150.0,0.0001472,2]
[419855588,1775422245850,-150.0,0.00014731,2]
[419855589,1775422245859,-150.0,0.00014732,2]
[419855590,1775422245868,-150.0,0.00014734,2]
[419855591,1775422245877,-150.0,0.00014738,2]
[419855592,1775422245887,-150.0,0.00014738,2]
[419855593,1775422245895,-150.0,0.00014739,2]
[419855594,1775422245904,-5246.17182426,0.00014749,2]
[419855595,1775422245914,-150.0,0.00014752,2]
[419855596,1775422245925,-150.0,0.00014758,2]
[419855597,1775422245935,-150.0,0.00014758,2]
[419855598,1775422245947,-150.0,0.00014761,2]
[419855599,1775422245956,-150.0,0.00014762,2]
[419855600,1775422245966,-150.0,0.00014764,2]
[419855601,1775422245975,-150.0,0.00014769,2]
[419855602,1775422245984,-150.0,0.00014776,2]
[419855603,1775422245994,-150.0,0.00014782,2]
[419855604,1775422246003,-150.0,0.00014783,2]
[419855605,1775422246012,-150.0,0.00014784,2]
[419855606,1775422246023,-150.0,0.00014786,2]
[419855607,1775422246034,-500.0,0.00014787,2]
[419855608,1775422246044,-150.0,0.00014792,2]
[419855610,1775422246053,-584.38971614,0.00014794,2]
[419855611,1775422246063,-553.41835149,0.00014795,2]
[419855612,1775422246072,-150.0,0.00014795,2]
[419855613,1775422246083,-788.29024,0.000148,2]
[419855614,1775422246092,-150.0,0.000148,2]
[419855615,1775422246102,-150.0,0.000148,2]
[419855617,1775422246111,-150.0,0.000148,2]
[419855618,1775422246121,-272.65,0.00014804,2]
[419855619,1775422246130,-150.0,0.00014806,2]
[419855620,1775422246140,-150.0,0.00014806,2]
[419855621,1775422246150,-150.0,0.00014814,2]
[419855622,1775422246161,-150.0,0.00014816,2]
[419855623,1775422246170,-587.0,0.00014816,2]
[419855624,1775422246179,-150.0,0.00014823,2]
[419855625,1775422246188,-5549.323809,0.00014826,2]
[419855626,1775422246198,-150.0,0.00014828,2]
[419855627,1775422246207,-150.0,0.0001483,2]
[419855629,1775422246217,-150.0,0.00014831,2]
[419855630,1775422246226,-150.0,0.00014833,2]
[419855631,1775422246235,-150.0,0.00014836,2]
[419855632,1775422246244,-150.0,0.00014841,2]
[419855633,1775422246254,-150.0,0.00014848,2]
[419855634,1775422246263,-150.0,0.00014851,2]
[419855635,1775422246271,-150.0,0.00014852,2]
[419855636,1775422246281,-150.0,0.00014853,2]
[419855637,1775422246290,-150.0,0.00014854,2]
[419855638,1775422246299,-150.0,0.00014862,2]
[419855639,1775422246309,-150.0,0.00014871,2]
[419855640,1775422246320,-150.0,0.00014873,2]
[419855641,1775422246330,-500.0,0.00014874,2]
[419855642,1775422246339,-150.0,0.00014878,2]
[419855643,1775422246348,-150.0,0.0001488,2]
[419855644,1775422246357,-2351.0,0.00014882,2]
[419855645,1775422246367,-150.0,0.00014883,2]
[419855646,1775422246376,-150.0,0.00014889,2]
[419855647,1775422246386,-150.0,0.00014892,2]
[419855648,1775422246395,-3552.965732,0.00014895,7]
[419855649,1775422246405,-150.0,0.00014896,2]
[419855650,1775422246415,-150.0,0.00014897,2]
[419855651,1775422246425,-150.0,0.000149,2]
[419855652,1775422246436,-150.0,0.00014901,2]
[419855653,1775422246445,-150.0,0.00014908,2]
[419855654,1775422246455,-150.0,0.00014909,2]
[419855655,1775422246464,-150.0,0.00014912,2]
[419855656,1775422246474,-150.0,0.00014913,2]
[419855657,1775422246484,-341.48,0.00014914,2]
[419855658,1775422246494,-150.0,0.00014918,2]
[419855659,1775422246505,-500.0,0.0001492,2]
[419855660,1775422246514,-747.78229907,0.0001492,2]
[419855661,1775422246524,-500.0,0.0001492,2]
[419855662,1775422246534,-500.0,0.0001492,2]
[419855663,1775422246543,-1377.42282659,0.0001492,2]
[419855664,1775422246552,-500.0,0.0001492,2]
[419855669,1775422246840,-500.0,0.0001492,2]
[419855670,1775422246880,-500.0,0.0001492,2]
[419855671,1775422246891,-500.0,0.0001492,2]
[419855672,1775422246900,-9211.34798985,0.0001492,2]
[419855673,1775422246911,-3000.0,0.0001492,2]
[419855674,1775422246921,-500.0,0.0001492,2]
[419855675,1775422246932,-201.93286099,0.0001492,2]
[419855676,1775422246941,-3000.0,0.0001492,2]
[419855677,1775422246952,-500.0,0.0001492,2]
[419855678,1775422246961,-3000.0,0.0001492,2]
[419855680,1775422246971,-500.0,0.0001492,2]
[419855681,1775422246980,-3000.0,0.0001492,2]
[419855682,1775422246990,-500.0,0.0001492,2]
[419855683,1775422246999,-3000.0,0.0001492,2]
[419855684,1775422247010,-500.0,0.0001492,2]
[419855685,1775422247022,-3000.0,0.0001492,2]
[419855686,1775422247033,-500.0,0.0001492,2]
[419855687,1775422247044,-3000.0,0.0001492,2]
[419855688,1775422247053,-151.0,0.0001492,2]
[419855689,1775422247063,-3000.0,0.0001492,2]
[419855690,1775422247072,-151.0,0.0001492,2]
[419855691,1775422247082,-201.93286099,0.0001492,2]
[419855692,1775422247093,-3000.0,0.0001492,2]
[419855693,1775422247102,-151.0,0.0001492,2]
[419855694,1775422247112,-3000.0,0.0001492,2]
[419855695,1775422247121,-151.0,0.0001492,2]
[419855696,1775422247131,-3000.0,0.0001492,2]
[419855697,1775422247141,-154.76515316,0.0001492,2]
[419855698,1775422247151,-3000.0,0.0001492,2]
[419855699,1775422247161,-743.50770149,0.0001492,2]
[419855700,1775422247170,-329.2835348,0.0001492,2]
[419855701,1775422247180,-668.65185757,0.0001492,2]
[419855702,1775422247190,-174.61919141,0.0001492,2]
[419855703,1775422247199,-151.0,0.0001492,2]
[419855704,1775422247208,-279.9045709,0.0001492,2]
[419855705,1775422247218,-151.0,0.0001492,2]
[419855706,1775422247228,-156.587,0.0001492,2]
[419855707,1775422247237,-195.25511793,0.0001492,2]
[419855708,1775422247247,-1500.0,0.0001492,2]
[419855709,1775422247257,-1500.0,0.0001492,2]
[419855710,1775422247266,-1500.0,0.0001492,2]
[419855711,1775422247276,-1500.0,0.0001492,2]
[419855712,1775422247286,-1500.0,0.0001492,2]
[419855713,1775422247296,-170.0,0.0001492,2]
[419855714,1775422247305,-170.0,0.0001492,2]
[419855715,1775422247315,-170.0,0.0001492,2]
[419855716,1775422247324,-170.0,0.0001492,2]
[419855717,1775422247333,-170.0,0.0001492,2]
[419855718,1775422247343,-170.0,0.0001492,2]
[419855719,1775422247353,-170.0,0.0001492,2]
[419855720,1775422247362,-170.0,0.0001492,2]
[419855721,1775422247372,-170.0,0.0001492,2]
[419855722,1775422247382,-170.0,0.0001492,2]
[419855723,1775422247392,-170.0,0.0001492,2]
[419855724,1775422247402,-170.0,0.0001492,2]
[419855725,1775422247412,-150.0,0.00014923,2]
[419855726,1775422247423,-9388.621435,0.00014925,7]
[419855727,1775422247432,-150.0,0.00014925,2]
[419855728,1775422247441,-150.0,0.00014927,2]
[419855729,1775422247451,-5633.559876,0.00014931,2]
[419855730,1775422247461,-150.0,0.00014933,2]
[419855731,1775422247471,-150.0,0.00014933,2]
[419855732,1775422247482,-150.0,0.00014941,2]
[419855733,1775422247492,-150.0,0.00014943,2]
[419855734,1775422247501,-150.0,0.00014944,2]
[419855735,1775422247511,-150.0,0.00014946,2]
[419855736,1775422247521,-150.0,0.00014949,2]
[419855737,1775422247533,-150.0,0.00014952,2]
[419855738,1775422247542,-150.0,0.00014954,2]
[419855739,1775422247552,-433.0,0.0001496,2]
[419855740,1775422247563,-150.0,0.00014963,2]
[419855741,1775422247572,-150.0,0.00014965,2]
[419855742,1775422247582,-181.76,0.00014973,2]
[419855743,1775422247592,-150.0,0.00014973,2]
[419855744,1775422247602,-150.0,0.00014974,2]
[419855745,1775422247612,-500.0,0.00014975,2]
[419855746,1775422247621,-9552.16786547,0.00014975,2]
[419855747,1775422247631,-151.0,0.00014975,2]
[419855748,1775422247641,-150.0,0.00014976,2]
[419855749,1775422247651,-150.0,0.00014982,2]
[419855750,1775422247661,-150.0,0.00014984,2]
[419855751,1775422247670,-150.0,0.00014985,2]
[419855752,1775422247680,-150.0,0.00014986,2]
[419855753,1775422247690,-150.0,0.00014997,2]
[419855754,1775422247700,-500.0,0.00015,2]
[419855755,1775422247709,-2858.23,0.00015,2]
[419855756,1775422247719,-2054.33,0.00015,2]
[419855757,1775422247730,-300.0,0.00015,2]
[419855758,1775422247740,-150.0,0.00015,2]
[419855759,1775422247749,-1641.8,0.00015,2]
[419855760,1775422247759,-150.0,0.00015002,2]
[419855761,1775422247768,-150.0,0.00015004,2]
[419855762,1775422247779,-26342.9185009,0.00015005,2]
[419855763,1775422247789,-1062.40962909,0.00015005,2]
[419855764,1775422247799,-27548.95393674,0.00015005,2]
[419855765,1775422247809,-150.0,0.00015007,2]
[419855766,1775422247819,-150.0,0.00015008,2]
[419855767,1775422247828,-150.0,0.00015008,2]
[419855768,1775422247838,-150.0,0.00015015,2]
[419855769,1775422247848,-150.0,0.00015021,2]
[419855770,1775422247858,-150.0,0.00015021,2]
[419855771,1775422247868,-500.0,0.0001503,2]
[419855772,1775422247878,-9905.5980765,0.0001503,2]
[419855773,1775422247887,-151.0,0.0001503,2]
[419855774,1775422247897,-150.0,0.00015031,2]
[419855775,1775422247906,-500.0,0.00015033,2]
[419855776,1775422247915,-164.79711181,0.00015033,2]
[419855777,1775422247924,-500.0,0.00015033,2]
[419855778,1775422247934,-500.13152132,0.00015033,2]
[419855779,1775422247943,-150.0,0.00015034,2]
[419855780,1775422247952,-150.0,0.0001504,2]
[419855781,1775422247962,-150.0,0.0001504,2]
[419855782,1775422247971,-500.0,0.00015041,2]
[419855783,1775422247980,-634.93,0.00015043,2]
[419855784,1775422247990,-571.58,0.00015043,2]
[419855785,1775422247999,-500.0,0.00015043,2]
[419855786,1775422248009,-500.0,0.00015043,2]
[419855787,1775422248018,-500.0,0.00015043,2]
[419855788,1775422248028,-500.0,0.00015043,2]
[419855789,1775422248037,-500.0,0.00015043,2]
[419855790,1775422248047,-615.25,0.00015043,2]
[419855791,1775422248057,-150.0,0.00015045,2]
[419855792,1775422248066,-150.0,0.00015046,2]
[419855793,1775422248076,-500.0,0.0001505,2]
[419855794,1775422248086,-150.0,0.00015054,2]
[419855795,1775422248095,-150.0,0.00015055,2]
[419855796,1775422248105,-161.91170216,0.00015057,2]
[419855797,1775422248114,-150.0,0.00015059,2]
[419855798,1775422248124,-150.0,0.00015062,2]
[419855799,1775422248134,-500.0,0.00015063,2]
[419855800,1775422248143,-500.0,0.00015063,2]
[419855801,1775422248152,-500.0,0.00015063,2]
[419855802,1775422248162,-385.86149772,0.00015063,2]
[419855803,1775422248171,-163.60261744,0.00015063,2]
[419855804,1775422248181,-211.04857142,0.00015063,2]
[419855805,1775422248191,-150.0,0.00015064,2]
[419855806,1775422248201,-500.0,0.00015065,2]
[419855807,1775422248210,-364.40328381,0.00015066,2]
[419855808,1775422248220,-900.0,0.00015068,2]
[419855809,1775422248231,-800.0,0.00015068,2]
[419855810,1775422248241,-150.0,0.00015069,2]
[419855811,1775422248251,-150.0,0.00015072,2]
[419855812,1775422248260,-500.0,0.00015072,2]
[419855813,1775422248270,-500.0,0.00015073,2]
[419855814,1775422248280,-500.0,0.00015073,2]
[419855815,1775422248289,-500.0,0.00015073,2]
[419855816,1775422248299,-500.0,0.00015073,2]
[419855817,1775422248309,-150.0,0.00015076,2]
[419855818,1775422248319,-150.0,0.00015077,2]
[419855819,1775422248329,-150.0,0.00015078,2]
[419855820,1775422248339,-500.0,0.00015085,2]
[419855821,1775422248348,-10272.10520533,0.00015085,2]
[419855822,1775422248358,-151.0,0.00015085,2]
[419855823,1775422248368,-150.0,0.00015093,2]
[419855824,1775422248378,-150.0,0.00015094,2]
[419855825,1775422248387,-500.0,0.00015095,2]
[419855826,1775422248397,-500.0,0.00015095,2]
[419855827,1775422248407,-500.0,0.00015096,2]
[419855828,1775422248417,-500.0,0.00015096,2]
[419855829,1775422248426,-150.0,0.00015096,2]
[419855830,1775422248436,-150.0,0.00015099,2]
[419855831,1775422248445,-500.0,0.000151,2]
[419855832,1775422248455,-403.93256284,0.000151,2]
[419855833,1775422248464,-500.0,0.000151,2]
[419855834,1775422248474,-500.0,0.000151,2]
[419855835,1775422248483,-160.34417201,0.000151,2]
[419855836,1775422248493,-500.0,0.000151,2]
[419855837,1775422248503,-150.0,0.000151,2]
[419855838,1775422248513,-150.0,0.00015104,2]
[419855839,1775422248522,-168.186131,0.00015104,2]
[419855840,1775422248532,-168.186131,0.00015104,2]
[419855841,1775422248542,-507.0,0.00015108,3]
[419855842,1775422248551,-150.0,0.00015108,2]
[419855843,1775422248560,-500.0,0.00015113,2]
[419855844,1775422248570,-500.0,0.00015113,2]
[419855845,1775422248579,-500.0,0.00015113,2]
[419855846,1775422248588,-500.0,0.00015113,2]
[419855847,1775422248598,-500.0,0.00015113,2]
[419855848,1775422248608,-500.0,0.00015113,2]
[419855849,1775422248618,-500.0,0.00015113,2]
[419855850,1775422248627,-598.99606082,0.00015113,2]
[419855851,1775422248637,-500.0,0.00015113,2]
[419855852,1775422248646,-519.03182682,0.00015113,2]
[419855853,1775422248656,-500.0,0.00015113,2]